bitfinex-derivatives/quotes_ETHF0:USTF0_20251006
["timestamp","ask_amount","ask_price","bid_price","bid_amount"]
[1759794328448,1.62416006,4696.1,4696.0,0.00174618]
[1759794328948,1.62416006,4696.1,4696.0,0.30784618]
[1759794330744,1.83716006,4696.1,4696.0,0.30784618]
[1759794330949,1.31156006,4696.1,4696.0,0.85814618]
[1759794331552,1.83716006,4696.1,4696.0,0.00174618]
[1759794331751,1.83716006,4696.1,4696.0,0.30784618]
[1759794332050,1.83716006,4696.1,4696.0,0.52544618]
[1759794332559,1.62416006,4696.1,4696.0,0.52544618]
[1759794333053,1.62416006,4696.1,4696.0,0.85814618]
[1759794333257,1.62416006,4696.1,4696.0,0.52544618]
[1759794335661,1.62416006,4696.1,4696.0,0.85814618]
[1759794336161,1.31736006,4696.1,4696.0,0.85814618]
[1759794337155,1.62336006,4696.1,4696.0,0.30784618]
[1759794337356,4.44616037,4696.1,4696.0,0.00174618]
[1759794337556,7.65396037,4696.1,4696.0,0.00174618]
[1759794338855,7.65396037,4696.1,4696.0,0.32444618]
[1759794339354,7.65396037,4696.1,4696.0,0.54524618]
[1759794339758,4.08856006,4696.1,4696.0,0.88514618]
[1759794340356,1.09806006,4696.1,4696.0,0.88514618]
[1759794340551,1.60756006,4696.1,4696.0,0.00174618]
[1759794340862,1.60756006,4696.1,4696.0,0.32444618]
[1759794341266,1.60756006,4696.1,4696.0,0.00174618]
[1759794341960,4.39167293,4696.1,4696.0,0.00174618]
[1759794342165,7.59947293,4696.1,4696.0,0.00174618]
[1759794342862,7.81247293,4696.1,4696.0,0.00174618]
[1759794353461,0.80551,4695.2,4695.1,0.3194]
[1759794353662,1.84533006,4695.2,4695.1,0.3194]
[1759794353863,1.84533006,4695.2,4695.1,0.537]
[1759794354468,1.84533006,4695.2,4695.1,0.53887551]
[1759794355166,1.84533006,4695.2,4695.1,0.00187551]
[1759794355167,4.63504355,4695.2,4695.1,0.00187551]
[1759794358970,4.42204355,4695.2,4695.1,0.00187551]
[1759794359173,4.63504355,4695.2,4695.1,0.00187551]
[1759794361672,4.42204355,4695.2,4695.1,0.53887551]
[1759794361976,1.51613006,4695.2,4695.1,0.75187551]
[1759794362167,1.84533006,4695.2,4695.1,0.32127551]
[1759794362373,1.84533006,4695.2,4695.1,0.53887551]
[1759794363377,4.61462734,4695.2,4695.1,0.00187551]
[1759794368078,4.61462734,4695.2,4695.1,0.53887551]
[1759794368473,4.61462734,4695.2,4695.1,0.00187551]
[1759794369577,0.80557,4694.5,4694.4,0.3194]
[1759794369882,5.05389402,4694.5,4694.4,0.3194]
[1759794370179,5.0538779,4694.5,4694.4,0.3194]
[1759794370574,5.05661031,4694.5,4694.4,0.32100526]
[1759794373074,4.72741031,4694.5,4694.4,0.75160526]
[1759794373774,4.30581031,4694.5,4694.4,0.75160526]
[1759794373976,3.21053241,4694.5,4694.4,0.75160526]
[1759794374171,0.00273241,4694.5,4694.4,5.75160526]
[1759794375678,0.21643241,4694.5,4694.4,0.75160526]
[1759794375883,0.00273241,4694.5,4694.4,5.75160526]
[1759794378984,0.38600241,4694.5,4694.4,5.75160526]
[1759794379185,0.00273241,4694.5,4694.4,9.55568526]
[1759794379681,0.00273241,4694.5,4694.4,4.17240526]
[1759794379885,0.00273241,4694.5,4694.4,9.55568526]
[1759794382979,0.00273241,4694.5,4694.4,9.17240526]
[1759794385081,0.38600241,4694.5,4694.4,9.17240526]
[1759794385484,0.38600241,4694.5,4694.4,9.55568526]
[1759794385979,0.00273241,4694.5,4694.4,9.55568526]
[1759794386182,0.00273241,4694.5,4694.4,4.55568526]
[1759794386484,0.38600241,4694.5,4694.4,4.55568526]
[1759794386683,0.38600241,4694.5,4694.4,4.17240526]
[1759794387278,0.38600241,4694.5,4694.4,4.55568526]
[1759794387478,0.38600241,4694.5,4694.4,4.17240526]
[1759794389389,0.00273241,4694.5,4694.4,4.17240526]
[1759794393388,0.22173241,4694.5,4694.4,4.17240526]
[1759794394391,0.73773241,4694.5,4694.4,0.96460526]
[1759794395091,1.12100241,4694.5,4694.4,0.96460526]
[1759794395287,0.80650241,4694.5,4694.4,0.96460526]
[1759794395490,0.38600241,4694.5,4694.4,0.96460526]
[1759794397097,0.60440241,4694.5,4694.4,0.96460526]
[1759794397395,0.38600241,4694.5,4694.4,0.96460526]
[1759794399594,0.60440241,4694.5,4694.4,0.96460526]
[1759794399796,0.80580241,4694.5,4694.4,0.96460526]
[1759794400588,0.60440241,4694.5,4694.4,0.96460526]
[1759794400896,0.38600241,4694.5,4694.4,0.96460526]
[1759794403299,0.60440241,4694.5,4694.4,0.96460526]
[1759794404500,0.38600241,4694.5,4694.4,0.96460526]
[1759794405194,0.60440241,4694.5,4694.4,0.96460526]
[1759794405395,1.30595728,4694.5,4694.4,0.96460526]
[1759794405700,1.10455728,4694.5,4694.4,0.96460526]
[1759794406697,0.60440241,4694.5,4694.4,0.96460526]
[1759794406903,0.38600241,4694.5,4694.4,0.96460526]
[1759794407208,0.00273241,4694.5,4694.4,1.34788526]
[1759794407400,0.38600241,4694.5,4694.4,0.96460526]
[1759794409999,0.38600241,4694.5,4694.4,1.34788526]
[1759794410303,0.38600241,4694.5,4694.4,0.96460526]
[1759794410503,0.00273241,4694.5,4694.4,1.34788526]
[1759794410701,0.38600241,4694.5,4694.4,1.34788526]
[1759794410903,0.38600241,4694.5,4694.4,0.96460526]
[1759794413010,0.00273241,4694.5,4694.4,1.34788526]
[1759794413210,0.38600241,4694.5,4694.4,1.34788526]
[1759794414611,0.38600241,4694.5,4694.4,0.96460526]
[1759794416310,0.59680241,4694.5,4694.4,0.96460526]
[1759794416509,1.11980241,4694.5,4694.4,0.96460526]
[1759794417810,1.61995361,4694.5,4694.4,0.75160526]
[1759794422016,1.61995361,4694.5,4694.4,0.21460526]
[1759794422712,1.72855361,4694.5,4694.4,0.00160526]
[1759794422911,1.61995361,4694.5,4694.4,0.30050526]
[1759794423811,1.61995361,4694.5,4694.4,0.00160526]
[1759794425012,1.72855361,4694.5,4694.4,0.00160526]
[1759794426412,4.93635361,4694.5,4694.4,0.00160526]
[1759794429713,0.38334,4693.6,4693.3,3.2078]
[1759794429913,0.38334,4693.6,4693.5,0.5429]
[1759794430315,0.38334,4693.6,4693.5,0.8418]
[1759794430713,0.38334,4693.6,4693.5,0.84366194]
[1759794431121,0.59414,4693.6,4693.5,0.84366194]
[1759794432616,0.5941,4694.1,4694.0,0.3404]
[1759794432919,0.5941,4694.1,4694.0,0.5519]
[1759794433115,0.5941,4694.1,4694.0,0.8508]
[1759794434822,1.09304901,4694.1,4694.0,0.8508]
[1759794435224,1.1171,4694.1,4694.0,0.8508]
[1759794435424,1.1171,4694.1,4694.0,0.5093]
[1759794435921,1.1171,4694.1,4694.0,0.8508]
[1759794435922,0.8002,4694.1,4694.0,0.8508]
[1759794436219,0.38328,4694.4,4694.1,0.2989]
[1759794436416,0.38328,4694.4,4694.3,0.7208]
[1759794437025,0.59408,4694.4,4694.3,0.7208]
[1759794438119,0.80018,4694.4,4694.3,0.7208]
[1759794440625,0.8006,4694.1,4694.0,0.7388]
[1759794440828,0.3833,4694.1,4694.0,0.8616]
[1759794441028,3.21053241,4694.5,4694.4,0.4262]
[1759794441029,0.58770241,4694.5,4694.4,0.4262]
[1759794441228,0.58770241,4694.5,4694.4,0.7388]
[1759794441527,0.38600241,4694.5,4694.4,0.7388]
[1759794441923,0.88541853,4694.5,4694.4,0.7388]
[1759794442124,1.08711853,4694.5,4694.4,0.7388]
[1759794442325,1.30271853,4694.5,4694.4,0.7388]
[1759794443728,0.3833,4694.1,4694.0,0.1228]
[1759794444033,0.8006,4694.1,4694.0,0.3297]
[1759794444332,1.30028249,4694.1,4694.0,0.8616]
[1759794446134,0.88298249,4694.1,4694.0,0.8616]
[1759794447834,0.38329,4694.3,4694.2,0.5319]
[1759794448137,0.38329,4694.3,4694.2,0.7388]
[1759794450439,0.58499,4694.3,4694.2,0.7388]
[1759794453940,0.38329,4694.3,4694.2,0.7388]
[1759794455539,1.17104,4695.2,4694.2,0.7388]
[1759794455540,3.2078,4695.6,4695.0,0.4262]
[1759794455837,3.59098,4695.6,4695.5,0.8616]
[1759794456140,4.29303284,4695.6,4695.5,0.8616]
[1759794456336,4.83463284,4695.6,4695.5,0.5195]
[1759794456635,0.38322,4695.1,4695.0,0.1228]
[1759794456829,1.13854,4694.8,4694.7,0.2088]
[1759794457230,1.13854,4694.8,4694.7,0.5404]
[1759794458041,1.13854,4694.8,4694.7,0.7435]
[1759794463246,0.81254,4694.8,4694.7,0.7435]
[1759794464245,0.59184,4694.8,4694.7,0.7435]
[1759794465849,0.38324,4694.8,4694.7,1.12675]
[1759794466848,0.38324,4694.8,4694.7,0.7435]
[1759794468342,0.326,4695.5,4694.7,0.7435]
[1759794468537,0.326,4695.5,4694.5,3.5436]
[1759794468538,0.38322,4695.1,4695.0,0.8635]
[1759794468851,0.38322,4695.1,4695.0,1.0765]
[1759794470449,0.38322,4695.1,4695.0,1.45973]
[1759794470942,0.38322,4695.1,4695.0,1.0765]
[1759794471248,0.38322,4695.1,4695.0,1.45973]
[1759794472547,3.59296692,4695.6,4695.5,1.24669]
[1759794472751,3.59296692,4695.6,4695.5,1.0765]
[1759794473454,0.38516692,4695.6,4695.5,1.0765]
[1759794473644,0.38516692,4695.6,4695.5,1.45969]
[1759794473844,0.38516692,4695.6,4695.5,1.0765]
[1759794474853,0.6026,4696.6,4696.5,0.8635]
[1759794475052,1.1213,4696.6,4696.5,1.0765]
[1759794475246,1.1213,4696.6,4696.5,0.7441]
[1759794475850,1.12326092,4696.6,4696.5,0.7441]
[1759794476747,1.12326092,4696.6,4696.5,0.8676]
[1759794476957,0.82106092,4696.6,4696.5,1.0765]
[1759794477849,0.60456092,4696.6,4696.5,1.0765]
[1759794478049,0.00196092,4696.6,4696.5,1.0765]
[1759794480649,0.74016092,4696.6,4696.5,0.8635]
[1759794480947,0.74016092,4696.6,4696.5,0.5382]
[1759794481546,1.12133,4696.2,4696.1,3.533]
[1759794481742,1.12133,4696.2,4696.1,0.7441]
[1759794482353,1.12133,4696.2,4696.1,0.5311]
[1759794482547,1.12133,4696.2,4696.1,0.7441]
[1759794484247,1.12133,4696.2,4696.1,0.953]
[1759794484947,1.12133,4696.2,4696.1,0.213]
[1759794485345,4.32913,4696.2,4696.1,0.7441]
[1759794485951,1.12133,4696.2,4696.1,0.5311]
[1759794486348,1.12133,4696.2,4696.1,0.3252]
[1759794487050,0.00196092,4696.6,4695.6,0.953]
[1759794487051,1.12137,4695.7,4695.6,0.953]
[1759794487251,1.12137,4695.7,4695.6,0.5382]
[1759794488051,1.12137,4695.7,4695.6,0.7441]
[1759794491660,0.7382,4695.7,4695.6,0.7441]
[1759794491861,3.2078,4696.3,4695.6,0.7441]
[1759794491862,0.3022,4696.2,4695.7,0.3252]
[1759794492066,0.2195,4695.8,4695.7,0.4148]
[1759794492471,0.60266,4695.8,4695.7,0.4148]
[1759794492671,0.60266,4695.8,4695.7,0.74]
[1759794493773,0.81916,4695.8,4695.7,0.74]
[1759794494268,1.12136,4695.8,4695.7,0.74]
[1759794495574,0.81916,4695.8,4695.7,0.74]
[1759794496172,0.60261,4696.5,4696.4,0.74]
[1759794496676,1.12131,4696.5,4696.4,0.74]
[1759794497277,0.81911,4696.5,4696.4,0.74]
[1759794498178,0.60261,4696.5,4696.4,0.74]
[1759794498377,0.38311,4696.5,4696.4,0.74]
[1759794498977,0.58751,4696.5,4696.4,0.74]
[1759794499676,0.79091,4696.5,4696.4,0.74]
[1759794499977,1.10191,4696.5,4696.4,0.74]
[1759794501680,0.79091,4696.5,4696.4,0.74]
[1759794502077,0.38314,4696.1,4696.0,0.1235]
[1759794502281,1.10194,4696.1,4696.0,0.5451]
[1759794502677,1.10194,4696.1,4696.0,0.8595]
[1759794503674,1.10194,4696.1,4696.0,1.0661]
[1759794503875,0.79094,4696.1,4696.0,1.0661]
[1759794504072,0.38314,4696.1,4696.0,1.44925]
[1759794504678,0.20636092,4696.6,4696.5,0.1301]
[1759794504981,1.29248307,4696.6,4696.5,0.8597]
[1759794505376,0.00196092,4696.6,4696.5,1.45581]
[1759794505582,3.5908,4697.8,4697.7,0.7296]
[1759794505775,4.09057611,4697.8,4697.7,0.9426]
[1759794505980,4.29497611,4697.8,4697.7,0.9426]
[1759794506186,3.2078,4697.8,4697.7,0.9426]
[1759794506586,0.00239959,4697.8,4697.7,0.94478064]
[1759794509692,0.00239959,4697.8,4697.7,4.15258064]
[1759794509892,3.2078,4698.5,4698.4,0.7296]
[1759794510088,3.2078,4698.5,4698.4,0.9426]
[1759794510287,3.4122,4698.5,4698.4,0.9426]
[1759794510886,0.20592889,4698.5,4698.4,0.9426]
[1759794511286,0.00152889,4698.5,4698.4,0.9426]
[1759794514989,0.20592889,4698.5,4698.4,0.7296]
[1759794515197,0.40932889,4698.5,4698.4,0.9426]
[1759794515394,0.72032889,4698.5,4698.4,0.9426]
[1759794515687,0.72032889,4698.5,4698.4,0.3144]
[1759794515889,0.79078,4698.1,4698.0,0.5453]
[1759794516098,0.79078,4698.1,4698.0,0.7583]
[1759794516595,0.79078,4698.1,4698.0,0.8502]
[1759794516792,0.79078,4698.1,4698.0,1.0632]
[1759794517188,0.38298,4698.1,4698.0,1.0632]
[1759794517497,0.58708,4698.1,4698.0,1.0632]
[1759794520493,1.13108,4698.1,4698.0,0.3049]
[1759794520694,1.13108,4698.1,4698.0,0.5179]
[1759794521398,1.13108,4698.1,4698.0,0.3049]
[1759794521590,1.13108,4698.1,4698.0,0.5179]
[1759794521790,1.13108,4698.1,4698.0,0.7248]
[1759794523094,1.13108,4698.1,4698.0,0.3049]
[1759794523396,1.13108,4698.1,4698.0,0.5179]
[1759794523788,1.13108,4698.1,4698.0,0.7248]
[1759794523988,1.13108,4698.1,4698.0,0.8534]
[1759794524188,0.80618,4698.1,4698.0,1.0548]
[1759794524496,0.20562889,4698.5,4698.4,0.7132]
[1759794524799,0.58856889,4698.5,4698.4,0.9262]
[1759794525699,0.00152889,4698.5,4698.4,0.9262]
[1759794526086,0.00152889,4698.5,4697.8,3.2078]
[1759794526087,1.28379889,4698.5,4697.8,3.2078]
[1759794526289,0.529,4697.9,4697.8,3.6161]
[1759794526492,0.529,4697.9,4697.8,3.8291]
[1759794526691,0.383,4697.8,4697.7,0.00218064]
[1759794526891,1.1311,4697.8,4697.7,0.00218064]
[1759794527098,0.38308,4696.9,4696.8,0.4083]
[1759794527295,0.529,4696.9,4696.8,0.6213]
[1759794528299,0.529,4696.9,4696.8,0.90082817]
[1759794530197,0.38307,4697.0,4696.9,0.59947]
[1759794530398,0.38307,4697.0,4696.9,1.08987]
[1759794530598,0.38306,4697.2,4697.1,0.7068]
[1759794530801,0.71456,4697.2,4697.1,0.9198]
[1759794531902,0.93246,4697.2,4697.1,0.9198]
[1759794532302,1.13466,4697.2,4697.1,0.6422]
[1759794533801,0.93247,4696.9,4696.8,0.43112817]
[1759794534003,0.71457,4696.9,4696.8,0.92172817]
[1759794534705,0.93247,4696.9,4696.8,0.92172817]
[1759794535699,0.93247,4696.9,4696.8,0.64412817]
[1759794536002,1.13467,4696.9,4696.8,0.64412817]
[1759794539305,1.13467,4696.9,4696.8,0.92172817]
[1759794541203,1.13467,4696.9,4696.8,1.30480817]
[1759794542305,0.38306,4697.1,4697.0,0.38307]
[1759794542511,0.3315,4697.7,4697.3,0.4292]
[1759794542709,0.93241,4697.7,4697.6,0.7068]
[1759794543012,1.13461,4697.7,4697.6,0.213]
[1759794543605,0.7516,4697.7,4697.6,0.9198]
[1759794544707,0.7516,4697.7,4697.6,0.6422]
[1759794545512,0.7516,4697.7,4697.6,0.9198]
[1759794548713,0.7516,4697.7,4697.6,0.6422]
[1759794553617,0.7516,4697.7,4697.6,0.9198]
[1759794553818,0.5494,4697.7,4697.6,0.9198]
[1759794554614,0.7516,4697.7,4697.6,0.6422]
[1759794556830,1.13463,4697.4,4697.3,3.2078]
[1759794557117,1.13467,4696.9,4696.8,3.63892817]
[1759794557323,1.13467,4696.9,4696.8,3.85192817]
[1759794557718,1.13467,4696.9,4696.8,3.63892817]
[1759794557918,1.13467,4696.9,4696.8,3.85192817]
[1759794558118,1.13467,4696.9,4696.8,4.23500817]
[1759794558425,1.13467,4696.9,4696.8,4.51240817]
[1759794558912,1.13467,4696.9,4696.8,4.23500817]
[1759794560526,0.7516,4696.9,4696.8,4.51240817]
[1759794561124,0.7516,4696.9,4696.8,4.23500817]
[1759794561319,0.7516,4696.9,4696.8,4.51240817]
[1759794562528,1.13467,4696.9,4696.8,4.51240817]
[1759794562719,0.7516,4696.9,4696.8,4.51240817]
[1759794562926,0.3315,4696.9,4696.8,4.51240817]
[1759794563328,0.71457,4696.9,4696.8,4.51240817]
[1759794563522,0.3315,4696.9,4696.8,4.51240817]
[1759794564123,1.13627,4696.9,4696.8,4.23500817]
[1759794564727,1.13627,4696.9,4696.8,4.51240817]
[1759794567627,1.91459,4698.9,4696.8,4.51240817]
[1759794567628,0.3296,4697.4,4697.3,0.4068]
[1759794567822,0.7513,4697.4,4697.3,3.8276]
[1759794568121,0.7513,4697.4,4697.3,0.213]
[1759794572727,0.3296,4697.8,4697.4,0.2774]
[1759794572933,0.5504,4697.8,4697.7,0.4068]
[1759794573233,0.7513,4697.8,4697.7,0.6198]
[1759794573532,0.5504,4697.8,4697.7,0.8972]
[1759794576331,0.38297,4698.2,4697.7,0.8972]
[1759794576533,0.4221,4698.2,4698.1,0.2063]
[1759794576735,0.92328329,4698.2,4698.1,0.213]
[1759794577035,1.22488329,4698.2,4698.1,0.213]
[1759794577737,1.22488329,4698.2,4698.1,0.6292]
[1759794580235,0.50458,4698.0,4697.9,3.4141]
[1759794580541,1.22828,4698.0,4697.9,3.4208]
[1759794582637,1.22828,4698.0,4697.9,3.6271]
[1759794587248,1.22828,4698.0,4697.9,3.4141]
[1759794587444,1.22828,4698.0,4697.9,3.6271]
[1759794587850,1.22828,4698.0,4697.9,4.1142]
[1759794588149,1.22828,4698.0,4697.9,4.49719]
[1759794588650,1.22828,4698.0,4697.9,4.1142]
[1759794589151,1.22828,4698.0,4697.9,4.49719]
[1759794597955,0.68458,4698.0,4697.9,4.49719]
[1759794598656,0.38298,4698.0,4697.9,4.49719]
[1759794598856,0.68888,4698.0,4697.9,4.49719]
[1759794599351,0.90288,4698.0,4697.9,4.1142]
[1759794599556,1.02278,4698.0,4697.9,4.1142]
[1759794600656,0.68888,4698.0,4697.9,4.49719]
[1759794602259,1.19075472,4698.0,4697.9,4.49719]
[1759794604963,0.80777472,4698.0,4697.9,4.49719]
[1759794605163,1.19075472,4698.0,4697.9,4.1142]
[1759794605655,1.19075472,4698.0,4697.9,4.49719]
[1759794607160,1.40475472,4698.0,4697.9,4.49719]
[1759794607466,1.52465472,4698.0,4697.9,4.1142]
[1759794609464,1.72645472,4698.0,4697.9,3.6271]
[1759794609668,1.72645472,4698.0,4697.9,0.896]
[1759794611672,1.22462,4697.5,4697.4,3.4078]
[1759794611864,1.22462,4697.5,4697.4,3.6208]
[1759794612064,0.4158,4696.9,4696.8,0.20192817]
[1759794612364,1.10477,4696.9,4696.8,0.41492817]
[1759794612670,1.10477,4696.9,4696.8,0.21492817]
[1759794613362,1.10477,4696.9,4696.8,0.00192817]
[1759794613567,0.1199,4696.0,4695.6,3.37855177]
[1759794613766,0.50309,4695.5,4695.4,0.2]
[1759794613971,1.22479,4695.5,4695.4,0.413]
[1759794614569,1.22479,4695.5,4695.4,0.41518838]
[1759794614866,1.22479,4695.5,4695.4,0.61468838]
[1759794615968,1.22479,4695.5,4695.4,0.41518838]
[1759794616274,1.22479,4695.5,4695.4,0.61468838]
[1759794617076,1.22479,4695.5,4695.4,0.21518838]
[1759794618770,1.22479,4695.5,4695.4,0.41518838]
[1759794622777,1.22479,4695.5,4695.4,0.21518838]
[1759794622979,1.22479,4695.5,4695.4,0.00218838]
[1759794623277,1.22479,4695.5,4695.4,0.21518838]
[1759794629477,1.22479,4695.5,4695.4,0.62798838]
[1759794631489,1.22479,4695.5,4695.4,1.28848838]
[1759794631687,1.22479,4695.5,4695.4,0.90528838]
[1759794631981,1.22479,4695.5,4695.4,0.62798838]
[1759794634090,1.22479,4695.5,4695.4,1.01118838]
[1759794634588,1.22479,4695.5,4695.4,0.62798838]
[1759794638081,1.22479,4695.5,4695.4,0.42678838]
[1759794641690,0.1199,4696.0,4695.5,0.2776]
[1759794641893,1.24745,4696.0,4695.9,0.2093]
[1759794642192,1.12757,4695.7,4695.6,3.6284]
[1759794642391,1.12757,4695.7,4695.6,4.22458]
[1759794642791,1.12757,4695.7,4695.6,4.119]
[1759794642985,1.12757,4695.7,4695.6,3.8414]
[1759794643394,0.7444,4695.7,4695.6,4.50218]
[1759794643590,0.5261,4695.7,4695.6,4.50218]
[1759794643789,0.90927,4695.7,4695.6,4.50218]
[1759794643991,0.90927,4695.7,4695.6,4.119]
[1759794645294,1.12757,4695.7,4695.6,4.119]
[1759794645594,1.12757,4695.7,4695.6,3.8414]
[1759794645995,1.12757,4695.7,4695.6,4.50218]
[1759794646196,1.12757,4695.7,4695.6,4.119]
[1759794649501,1.12757,4695.7,4695.6,3.8414]
[1759794649798,1.12757,4695.7,4695.6,0.213]
[1759794649995,1.25739,4695.5,4695.4,0.00218838]
[1759794650187,1.25739,4695.5,4695.4,0.21518838]
[1759794650588,6.25739,4695.5,4695.4,0.17442049]
[1759794650794,1.25747,4694.5,4694.4,3.2078]
[1759794650996,1.25747,4694.5,4694.4,3.4208]
[1759794651696,1.26021792,4694.5,4694.4,3.42266773]
[1759794652097,1.26021792,4694.5,4694.4,3.20966773]
[1759794652299,1.26021792,4694.5,4694.4,3.42266773]
[1759794654099,1.26021792,4694.5,4692.9,0.32700901]
[1759794654100,0.38339,4693.0,4692.9,0.32700901]
[1759794654404,3.59119,4693.0,4692.9,0.32700901]
[1759794654698,3.59119,4693.0,4692.9,0.54000901]
[1759794655094,8.59119,4693.0,4692.9,3.13e-06]
[1759794655293,9.09119071,4693.0,4692.9,3.13e-06]
[1759794655998,4.09119071,4693.0,4692.9,0.21630313]
[1759794656199,3.59119,4693.0,4692.9,0.63700313]
[1759794657201,3.59119,4693.0,4692.9,0.94270313]
[1759794660808,3.59119,4693.0,4692.9,0.72970313]
[1759794661007,3.59119,4693.0,4692.9,0.52200313]
[1759794662814,3.59119,4693.0,4692.9,0.72970313]
[1759794664613,3.59119,4693.0,4692.9,0.52200313]
[1759794665608,3.59119,4693.0,4692.9,0.72970313]
[1759794671013,0.38342,4692.6,4692.5,0.1247]
[1759794671916,0.38342,4692.6,4692.5,0.12651191]
[1759794672918,0.38342,4692.6,4692.5,0.43221191]
[1759794674714,0.59642,4692.6,4692.5,0.43221191]
[1759794675211,0.38347,4692.1,4692.0,0.1247]
[1759794675414,3.59127,4692.1,4692.0,0.1247]
[1759794676322,3.59127,4692.1,4692.0,0.12623583]
[1759794677214,3.59127,4692.1,4692.0,0.43193583]
[1759794678123,3.59127,4692.1,4692.0,0.64823583]
[1759794678422,3.59127,4692.1,4692.0,0.86953583]
[1759794682426,4.09189314,4692.1,4692.0,0.86953583]
[1759794682722,3.59127,4692.1,4692.0,0.86953583]
[1759794683427,4.0924542,4692.1,4692.0,0.86953583]
[1759794689431,0.8846542,4692.1,4692.0,1.25300583]
[1759794689928,0.38346,4692.2,4692.1,1.12017]
[1759794690228,0.88458224,4692.2,4692.1,1.12017]
[1759794694735,0.88458224,4692.2,4692.1,0.7367]
[1759794696037,0.88458224,4692.2,4692.1,1.12017]
[1759794698837,0.50112224,4692.2,4692.1,1.12017]
[1759794699038,0.38344,4692.5,4692.4,0.38344]
[1759794699337,0.88616352,4692.5,4692.4,1.11824]
[1759794699939,0.38342,4692.7,4692.6,1.11822]
[1759794700130,0.88615672,4692.7,4692.6,1.11822]
[1759794701332,0.38342,4692.7,4692.6,1.11822]
[1759794702044,0.38342,4692.7,4692.6,0.7348]
[1759794702246,0.8858222,4692.7,4692.6,1.11822]
[1759794702436,0.38342,4692.7,4692.6,1.11822]
[1759794703346,0.38342,4692.7,4692.5,0.1208]
[1759794703347,0.38341,4692.8,4692.7,0.79611]
[1759794703543,0.38341,4692.8,4692.7,1.11821]
[1759794704547,0.38341,4692.8,4692.7,0.7348]
[1759794707642,0.38341,4692.8,4692.7,1.11822]
[1759794708653,0.3834,4692.9,4692.8,1.1167]
[1759794709453,0.3834,4692.9,4692.8,0.7333]
[1759794711255,0.3834,4692.9,4692.8,1.11671]
[1759794712056,0.3834,4693.0,4692.8,0.80851]
[1759794712253,0.3834,4692.9,4692.8,1.11671]
[1759794714654,0.3834,4692.9,4692.8,0.7333]
[1759794715053,0.38338,4693.1,4693.0,0.1284]
[1759794715356,0.38338,4693.1,4693.0,0.8617]
[1759794715856,0.38338,4693.1,4693.0,1.24509]
[1759794716060,0.38338,4693.1,4693.0,0.8617]
[1759794718152,0.38338,4693.1,4693.0,1.24509]
[1759794718448,3.59118,4693.2,4693.1,0.7333]
[1759794719656,4.09360305,4693.2,4693.1,0.7333]
[1759794720357,4.09360305,4693.2,4693.1,0.5239]
[1759794720553,4.09360305,4693.2,4693.1,0.3082]
[1759794727960,4.09360305,4693.2,4693.1,0.5239]
[1759794729267,4.09360305,4693.2,4693.1,0.3082]
[1759794733266,4.30660305,4693.2,4693.1,0.3082]
[1759794733667,4.30660305,4693.2,4693.1,0.5239]
[1759794734165,4.09360305,4693.2,4693.1,0.7333]
[1759794741774,4.09360305,4693.2,4693.1,0.3082]
[1759794746675,4.09360305,4693.2,4693.1,0.5149]
[1759794749168,4.09360305,4693.2,4693.1,0.7363]
[1759794756881,3.59118,4693.2,4693.1,0.7363]
[1759794761383,4.09416354,4693.2,4693.1,0.7363]
[1759794761882,4.09416354,4693.2,4693.1,0.3082]
[1759794771383,4.30716354,4693.2,4693.1,0.3082]
[1759794772989,4.09416354,4693.2,4693.1,0.7349]
[1759794773492,3.71078354,4693.2,4693.1,1.11828]
[1759794773983,3.2078,4693.2,4693.1,1.11828]
[1759794776487,0.38337,4693.3,4693.1,0.81008]
[1759794776689,0.38337,4693.3,4693.2,0.7354]
[1759794777084,0.88630814,4693.3,4693.2,0.7354]
[1759794781797,0.50293814,4693.3,4693.2,0.7354]
[1759794785798,0.50293814,4693.3,4693.2,0.9484]
[1759794786294,0.38337,4693.3,4693.2,0.5216]
[1759794786503,0.88630814,4693.3,4693.2,0.3087]
[1759794791403,0.95848,4693.1,4692.5,0.1208]
[1759794791709,3.59122,4692.6,4692.5,0.1208]
[1759794791901,4.09415814,4692.6,4692.5,0.1208]
[1759794793608,4.09415814,4692.6,4692.5,0.4295]
[1759794794304,4.09415814,4692.6,4692.5,0.8562]
[1759794795209,4.09415814,4692.6,4692.5,0.6424]
[1759794796909,4.09415814,4692.6,4692.5,0.4295]
[1759794805717,4.30715814,4692.6,4692.5,0.4295]
[1759794807213,4.30715814,4692.6,4692.5,0.3087]
[1759794809219,4.30715814,4692.6,4692.5,0.4395]
[1759794810822,4.09415814,4692.6,4692.5,0.87]
[1759794811422,4.09415814,4692.6,4692.5,0.6581]
[1759794813522,4.09415814,4692.6,4692.5,0.87]
[1759794819529,4.09415814,4692.6,4692.5,0.4395]
[1759794820529,4.30715814,4692.6,4692.5,0.4395]
[1759794820832,0.38347,4692.1,4692.0,0.12623583]
[1759794821035,4.09420814,4692.1,4692.0,0.12623583]
[1759794821226,4.09420814,4692.1,4692.0,0.44353583]
[1759794822229,4.09420814,4692.1,4692.0,0.12623583]
[1759794822533,0.38351,4691.6,4691.5,0.1247]
[1759794822726,4.09424814,4691.6,4691.5,0.3415]
[1759794822924,4.09424814,4691.6,4691.5,0.6588]
[1759794823333,4.09424814,4691.6,4691.5,0.6614236]
[1759794824035,3.71073814,4691.6,4691.5,0.8662236]
[1759794827139,3.2078,4691.6,4691.5,0.8662236]
[1759794833940,3.59131,4691.6,4691.5,0.8662236]
[1759794844454,4.09387422,4691.6,4691.5,0.0026236]
[1759794844654,4.09387422,4691.6,4691.5,0.4552236]
[1759794846654,3.59131,4691.6,4691.5,0.8843236]
[1759794846951,4.09395811,4691.6,4691.5,0.8843236]
[1759794847647,4.09395811,4691.6,4691.5,0.6675236]
[1759794847848,4.09395811,4691.6,4691.5,0.4552236]
[1759794866586,3.71044811,4691.6,4691.5,1.2402336]
[1759794866873,3.71044811,4691.6,4691.5,0.8567236]
[1759794867973,3.71044811,4691.6,4691.5,0.4552236]
[1759794874773,3.71044811,4691.6,4691.5,0.8567236]
[1759794880080,4.09395811,4691.6,4691.5,0.6564236]